Cogmind - Beta 13 @@@ ROGUE MODE // 2024.04.11 @ 16:08:38 Player: TiredKraken Result: Destroyed by G-47 Trooper with Particle Gun Performance ------------- Evolutions (2) 1000 Regions Visited (5) 1000 Robots Destroyed (51) 255 Value Destroyed (1695) 1695 Prototype IDs (27) 540 Alien Tech Used (0) 0 Bonus (375) 375 TOTAL SCORE: 4865 Bonus ------- High Alert Combat Kills 75 Aligned with FarCom 300 Cogmind --------- Core Integrity 0/550 Matter 300/300 Energy 52/100 System Corruption 0% Temperature Cool (9) Movement Core (50) Location -8/Materials Parts ------- > --- POWER (2) -------- (None) > --- PROPULSION (2) --- (None) > --- UTILITY (4) ------ Advanced Weight Redist. System PSU Rigger > --- WEAPON (3) ------- Spear > --- INVENTORY (5) ---- Mining Laser Katana Peak State ------------ > --- POWER ------------ Light Deuterium Engine Light Nuclear Core > --- PROPULSION ------- Improved Hover Unit Cesium-ion Thruster > --- UTILITY ---------- Advanced Weight Redist. System Advanced Targeting Computer Reaction Control System PSU Rigger > --- WEAPON ----------- Precision Shock Rifle Improved Spread Laser Spear > --- INVENTORY -------- Improved Hover Unit System Shield Mining Laser [Rating: 42] Favorites ----------- Power Light Nuclear Core Engine Light Ion Engine Power Core Light Nuclear Core Propulsion Aluminum Leg Treads Light Treads Leg Aluminum Leg Wheel Wheel Hover Unit Improved Hover Unit Flight Unit Flight Unit Utility PSU Rigger Device PSU Rigger Storage Small Storage Unit Processor Advanced Targeting Computer Hackware System Shield Protection Hardened Medium Armor Plating Weapon Assault Rifle Energy Gun Improved Spread Laser Ballistic Gun Assault Rifle Ballistic Cannon Gauss Cannon Special Weapon Mining Laser Piercing Weapon Spear Build | -11 -10 -10 -10 -9 -8 ------- Run | Yrd Mat Min Exi Min Mat Slots Evolved 4 | . . . . . 4 Power 1 | . . . . . 1 Propulsion . | . . . . . . Utility 2 | . . . . . 2 Weapon 1 | . . . . . 1 Parts Attached 62 | 6 1 . 2 8 45 Power 14 | 1 . . . 2 11 Engine 4 | 1 . . . 1 2 Core 10 | . . . . 1 9 Reactor . | . . . . . . Propulsion 19 | 2 . . . 5 12 Treads 2 | . . . . . 2 Leg 9 | 2 . . . 3 4 Wheel 2 | . . . . . 2 Hover 3 | . . . . . 3 Flight 3 | . . . . 2 1 Utility 17 | 1 1 . 2 . 13 Device 11 | . . . 2 . 9 Storage 2 | 1 1 . . . . Processor 1 | . . . . . 1 Hackware 1 | . . . . . 1 Protection 2 | . . . . . 2 Artifact . | . . . . . . Weapon 12 | 2 . . . 1 9 Energy Gun 6 | 1 . . . . 5 Energy Cannon . | . . . . . . Ballistic Gun 2 | 1 . . . . 1 Ballistic Cannon 2 | . . . . 1 1 Launcher . | . . . . . . Special Weapon 1 | . . . . . 1 Impact Weapon . | . . . . . . Slashing Weapon . | . . . . . . Piercing Weapon 1 | . . . . . 1 Special Melee Weapon . | . . . . . . Unidentified Prototypes 4 | . . . . . 4 Parts Lost 20 | . . . . . 20 Power 7 | . . . . . 7 Propulsion 5 | . . . . . 5 Utility 4 | . . . . . 4 Weapon 4 | . . . . . 4 Highest Loss Streak 6 | . . . . . 6 To Critical Strikes . | . . . . . . Average Slot Usage (%) 92 | . 97 100 100 100 84 Engine 7 | . 14 14 14 11 2 Core 6 | . . . . 2 11 Treads 1 | . . . . . 3 Leg 17 | . 28 28 28 27 7 Hover 3 | . . . . . 6 Device 21 | . . . 11 28 24 Storage 4 | . 25 28 16 . . Protection 1 | . . . . . 2 Energy Gun 9 | . 14 14 14 . 13 Ballistic Gun 7 | . 14 14 14 14 1 Ballistic Cannon 5 | . . . . 13 2 Piercing Weapon 2 | . . . . . 5 Naked Turns . | . . . . . . Heaviest Build 32 | 12 15 15 15 17 32 Greatest Support 40 | 20 20 20 20 25 40 Greatest Overweight (x) 1 | . . . . 1 1 Average Overweight (x) . | . . . . . . Largest Inventory Capacity 8 | 8 8 8 8 5 5 Average Capacity 5 | 6 8 8 6 5 5 Most Carried 6 | 4 4 5 6 5 5 Average Carried 3 | 1 2 4 4 3 2 Final Capacity 8 | 8 8 8 5 5 5 Final Carried 5 | 2 3 5 4 5 2 Class Distribution -------------------- 77% | Mutant 12% | Scavenger-Assassin 5% | Scavenger-Mutant 4% | Skirmisher Dominant Class ---------------- Mutant | -10/Materials Mutant | -10/Mines Mutant | -10/Exiles Mutant | -9/Mines Mutant | -8/Materials Resources | -11 -10 -10 -10 -9 -8 ----------- Run | Yrd Mat Min Exi Min Mat Matter Collected 1592 | 198 48 222 10 297 817 Remotely . | . . . . . . Salvage Created 1609 | . . 64 . 140 1405 Parts 88 | . . 1 . 14 73 Haulers Intercepted . | . . . . . . Recyclers Shooed . | . . . . . . Parts Field Recycled . | . . . . . . Retrieved Matter . | . . . . . . Parts Self-Destructed . | . . . . . . Prevented . | . . . . . . Kills | -11 -10 -10 -10 -9 -8 ------- Run | Yrd Mat Min Exi Min Mat Combat Hostiles Destroyed 40 | . . 2 . 9 29 Melee 7 | . . . . . 7 Guns 16 | . . 2 . 4 10 Cannons 11 | . . . . 5 6 AOE 4 | . . . . . 4 Classes Destroyed 12 | . . 2 . 1 9 Worker 3 | . . . . . 3 Builder 1 | . . . . . 1 Tunneler 1 | . . . . . 1 Operator 2 | . . . . . 2 Watcher 4 | . . . . . 4 Swarmer 9 | . . . . 6 3 Grunt 19 | . . 1 . 3 15 Brawler 1 | . . . . . 1 Duelist 1 | . . . . . 1 Sentry 7 | . . . . . 7 Demolisher 1 | . . 1 . . . Hunter 2 | . . . . . 2 Best Kill Streak 7 | . . 1 . 3 7 Combat Bots Only 4 | . . 1 . 3 4 Max Kills in Single Turn 3 | . . 1 . 1 3 Gunslinging . | . . . . . . Exploded 2 | . . . . . 2 Melee 1 | . . . . . 1 Uniques/NPCs Destroyed . | . . . . . . Combat | -11 -10 -10 -10 -9 -8 -------- Run | Yrd Mat Min Exi Min Mat Hostile Shots Fired 288 | . 4 4 . 30 250 Missed 80 | . 2 1 . 8 69 Damage Taken 3184 | . 13 119 . 169 2883 Core 597 | . . 12 . 24 561 Absorbed by Shields 217 | . . . . . 217 Regen/Repaired (Parts) 24 | . . . . . 24 Core Remaining (%) 92 | 100 . . . 85 . Volleys Fired 153 | . 3 13 . 23 114 Largest 2 | . 1 1 . 2 2 Hottest 106 | . 20 20 . 68 106 Shots Fired 216 | . 3 13 . 46 154 Gun 142 | . 3 13 . 23 103 Cannon 74 | . . . . 23 51 Launcher . | . . . . . . Special . | . . . . . . Kinetic 137 | . 3 13 . 46 75 Thermal 14 | . . . . . 14 Explosive . | . . . . . . Electromagnetic 65 | . . . . . 65 Robot Hit Streak 19 | . . 5 . 12 19 Robot Miss Streak 6 | . 3 6 . 3 5 Penetration Max 1 | . . . . . 1 Secondary Targets . | . . . . . . Shots Hit Robots 160 | . . 8 . 26 126 Core Hits 78 | . . 7 . 11 60 Critical Kills . | . . . . . . Critical Parts Destroyed . | . . . . . . Critical Strikes 7 | . . . . 1 6 Burn 2 | . . . . . 2 Blast 4 | . . . . 1 3 Impale 1 | . . . . . 1 Melee Attacks 22 | . . . . . 22 Impact . | . . . . . . Slashing . | . . . . . . Piercing 22 | . . . . . 22 Sneak Attacks 4 | . . . . . 4 Combat Hostiles 1 | . . . . . 1 Follow-up Attacks . | . . . . . . Damage Inflicted 4408 | . . 140 . 562 3706 Guns 1767 | . . 140 . 121 1506 Cannons 1305 | . . . . 441 864 Explosions 692 | . . . . . 692 Melee 639 | . . . . . 639 Ramming 5 | . . . . . 5 Kinetic 1757 | . . 140 . 562 1055 Thermal 880 | . . . . . 880 Explosive . | . . . . . . Electromagnetic 1127 | . . . . . 1127 Impact . | . . . . . . Slashing . | . . . . . . Piercing 639 | . . . . . 639 Highest Corruption . | . . . . . . Average Corruption . | . . . . . . Corruption Purged . | . . . . . . Corruption Blocked . | . . . . . . Overload Shots . | . . . . . . Overflow Damage 250 | . . . . 8 242 Projectiles 22 | . . . . 8 14 Explosions 175 | . . . . . 175 Melee 53 | . . . . . 53 Knockbacks 9 | . . . . 3 6 Impact . | . . . . . . Kinetic 9 | . . . . 3 6 Secondary . | . . . . . . Self-Inflicted Damage 192 | . . . . . 192 Shots 3 | . . . . . 3 Rammed . | . . . . . . Targets Rammed 2 | . . . . . 2 Kicked 2 | . . . . . 2 Crushed . | . . . . . . Highest Temperature 366 | . . . . . 366 Average Temperature 76 | . . . . . 76 Received Heat Transfer 1269 | . . 15 . . 1254 Effects 1 | . . . . . 1 Shutdowns 1 | . . . . . 1 Siege Activations . | . . . . . . Robots Corrupted 2 | . . . . . 2 Combat Hostiles 2 | . . . . . 2 Parts Fried 8 | . . . . . 8 Impact Corruptions . | . . . . . . Robots Melted . | . . . . . . Combat Hostiles . | . . . . . . Parts Melted 1 | . . . . . 1 Heat Transferred 1155 | . . . . . 1155 Parts Sabotaged . | . . . . . . Parts Stolen . | . . . . . . Parts Stripped . | . . . . . . Power Chain Reactions 3 | . . . . . 3 Alert | -11 -10 -10 -10 -9 -8 ------- Run | Yrd Mat Min Exi Min Mat Peak Influence 637 | . 14 45 . 106 637 Initial 24 | . . 5 . . 24 Average 192 | . 12 35 . 42 308 Maximum Alert Level 2 | . . . . . 2 Low Security (%) 55 | 100 100 100 . 100 22 Level 1 35 | . . . . . 61 Level 2 8 | . . . . . 15 Level 3 . | . . . . . . Level 4 . | . . . . . . Level 5 . | . . . . . . High Security . | . . . . . . Max Security . | . . . . . . Squads Dispatched 12 | . . . . 1 11 Investigation 5 | . . . . 1 4 Extermination . | . . . . . . Reinforcement 5 | . . . . . 5 Assault . | . . . . . . Garrison 2 | . . . . . 2 Intercept . | . . . . . . Searches Triggered . | . . . . . . Construction Impeded 2 | . . . . . 2 Haulers Reinforced . | . . . . . . Active Scanning Responses . | . . . . . . Cargo Convoy Interrupts . | . . . . . . Stealth | -11 -10 -10 -10 -9 -8 --------- Run | Yrd Mat Min Exi Min Mat Distress Signals 1 | . . . . . 1 Communications Jammed . | . . . . . . Distress Signals . | . . . . . . Times Spotted 66 | . 4 4 . 9 49 Peak Tracking Total 6 | . 3 2 . 3 6 Tactical Retreats 3 | . . . . 1 2 Traps | -11 -10 -10 -10 -9 -8 ------- Run | Yrd Mat Min Exi Min Mat Traps Triggered 1 | . . . . . 1 Indirectly . | . . . . . . Trap Hack Attempts . | . . . . . . Triggered . | . . . . . . Disarmed . | . . . . . . Reprogrammed . | . . . . . . Reused . | . . . . . . Traps Extracted . | . . . . . . Installed . | . . . . . . Triggered . | . . . . . . Objects Rigged 9 | . . . . 2 7 Exploded 6 | . . . . . 6 Machines | -11 -10 -10 -10 -9 -8 ---------- Run | Yrd Mat Min Exi Min Mat Machines Disabled 3 | . . . . . 3 Max in Single Turn 3 | . . . . . 3 Machines Repaired . | . . . . . . Machines Dismantled . | . . . . . . Machines Sabotaged . | . . . . . . Overloaded Fab Kills . | . . . . . . Hacking | -11 -10 -10 -10 -9 -8 --------- Run | Yrd Mat Min Exi Min Mat Machines Accessed 11 | . 1 . 4 1 5 Terminals 3 | . 1 . . . 2 Fabricators . | . . . . . . Repair Stations 2 | . . . . . 2 Recycling Units 1 | . . . . . 1 Scanalyzers . | . . . . . . Garrison Access . | . . . . . . Total Hacks 49 | . 1 . 27 1 20 Successful 39 | . 1 . 27 1 10 Failed 9 | . . . . . 9 Catastrophic 2 | . . . . . 2 Database Lockouts 1 | . . . . . 1 Manual 2 | . . . 2 . . Terminals 11 | . 1 . . . 10 Fabricators . | . . . . . . Repair Stations 8 | . . . . . 8 Recycling Units 2 | . . . . . 2 Scanalyzers . | . . . . . . Garrison Access . | . . . . . . Terminal Hacks 32 | . 1 . 27 1 3 Record 29 | . . . 26 . 3 Open Door 1 | . . . . 1 . Locate Traps 1 | . 1 . . . . Derelict Proto ID Bank 1 | . . . 1 . . Fabricator Hacks . | . . . . . . Repair Station Hacks 5 | . . . . . 5 Scan Component 4 | . . . . . 4 Repair 1 | . . . . . 1 Recycling Unit Hacks 2 | . . . . . 2 Recycle Component 1 | . . . . . 1 Report Inventory 1 | . . . . . 1 Scanalyzer . | . . . . . . Garrison Access Hacks . | . . . . . . Unauthorized Hacks . | . . . . . . Terminals . | . . . . . . Fabricators . | . . . . . . Repair Stations . | . . . . . . Recycling Units . | . . . . . . Scanalyzers . | . . . . . . Garrison Access . | . . . . . . Data Cores Recovered . | . . . . . . Used . | . . . . . . Hacking Detections 5 | . 1 . . . 4 Full Trace Events 4 | . . . . . 4 Feedback Events . | . . . . . . Feedback Blocked . | . . . . . . Robot Schematics Acquired . | . . . . . . Robots Built . | . . . . . . Authchips . | . . . . . . Time . | . . . . . . Total Robot Build Rating . | . . . . . . Part Schematics Acquired . | . . . . . . Parts Built . | . . . . . . Authchips . | . . . . . . Time . | . . . . . . Total Part Build Rating . | . . . . . . Parts Repaired 1 | . . . . . 1 Time 38 | . . . . . 38 Parts Recycled 1 | . . . . . 1 Recycled Matter . | . . . . . . Retrieved Matter . | . . . . . . Retrieved Components . | . . . . . . Parts Scanalyzed . | . . . . . . Part Schematics Acquired . | . . . . . . Parts Damaged . | . . . . . . Bothacking | -11 -10 -10 -10 -9 -8 ------------ Run | Yrd Mat Min Exi Min Mat Used RIF Installer . | . . . . . . Robots Hacked . | . . . . . . Non-combat . | . . . . . . Combat . | . . . . . . Robot Hacks Applied . | . . . . . . Relay Couplers Released . | . . . . . . Fabnet Peak Effective % . | . . . . . . Robots Rewired . | . . . . . . Allies Hacked . | . . . . . . Hacks Repelled . | . . . . . . Allies | -11 -10 -10 -10 -9 -8 -------- Run | Yrd Mat Min Exi Min Mat Total Allies . | . . . . . . Largest Group . | . . . . . . Highest-Rated Group . | . . . . . . Highest-Rated Ally . | . . . . . . Total Orders . | . . . . . . Ally Attacks . | . . . . . . Total Damage . | . . . . . . Kills . | . . . . . . Allies Corrupted . | . . . . . . Allies Melted . | . . . . . . Intel | -11 -10 -10 -10 -9 -8 ------- Run | Yrd Mat Min Exi Min Mat Robot Analysis Total . | . . . . . . Derelict Logs Recovered 1 | . . . . 1 . Drone Launches . | . . . . . . Drone Recoveries . | . . . . . . Exploration | -11 -10 -10 -10 -9 -8 ------------- Run | Yrd Mat Min Exi Min Mat Turns Passed 4131 | 89 136 135 595 1154 2022 Spaces Moved 2527 | 75 105 86 492 846 923 Core 50 | 21 . . . . 29 Treads 164 | . . . . . 164 Legs 1925 | 54 105 86 492 820 368 Wheels 16 | . . . . . 16 Hover 346 | . . . . . 346 Flight 26 | . . . . 26 . Fastest Speed 50 | 50 120 120 120 117 50 Average Speed 124 | 100 120 120 120 119 135 Slowest Speed 190 | 120 120 120 120 120 190 Overloaded Moves . | . . . . . . Propulsion Burnouts . | . . . . . . Robots Hopped . | . . . . . . Cave-ins Triggered . | . . . . . . Exploration Rate (%) 49 | 4 26 29 82 100 55 Regions Visited 5 Branch Regions 3 Pre-discovered Areas . | . . . . . . Known Exits Taken . | . . . . . . Unknown Exits Taken 5 | 1 1 1 1 1 . Scrap Searched 3 | . . 1 . 2 . Spaces Dug . | . . . . . . Terrain Destroyed 81 | . . . . 13 68 Melee . | . . . . . . Projectile 34 | . . . . 13 21 AOE 47 | . . . . . 47 Terrain Rammed . | . . . . . . Walls Destroyed . | . . . . . . Machines Disabled . | . . . . . . Actions | -11 -10 -10 -10 -9 -8 --------- Run | Yrd Mat Min Exi Min Mat Total 3267 | 88 112 105 497 943 1522 Wait 395 | . . 5 . 47 343 Move 2522 | 74 104 85 491 845 923 Hop . | . . . . . . Pick Up 60 | 8 3 2 2 9 36 Fast Attach 2 | . . . . . 2 Attach 49 | 6 1 . 2 6 34 Detach 7 | . . . . . 7 Swap 11 | . . . . 2 9 Drop 35 | . 1 . 2 9 23 Fire 153 | . 3 13 . 23 114 Melee 22 | . . . . . 22 Ram . | . . . . . . Kick 2 | . . . . . 2 Crush . | . . . . . . Escape Stasis . | . . . . . . Rewire . | . . . . . . Trap 9 | . . . . 2 7 Miscellaneous . | . . . . . . Route ------- -11/Scrapyard -10/Materials -10/Mines -10/Exiles -9/Mines (discovered 2 exits: *Mat x2) -8/Materials (discovered 2 exits: [*Fac x2]) History --------- Turn | Location | Event 6 | -11/Scrapyard | Discovered new exit (range 16) 90 | -11/Scrapyard | Entered Materials 148 | -10/Materials | Met 8R-AWN 207 | -10/Materials | Discovered new exit (range 8) 226 | -10/Materials | Entered Mines 228 | -10/Mines | Followed 8R-AWN into the Mines 232 | -10/Mines | Assembled infested the area 312 | -10/Mines | Build established: Mutant 335 | -10/Mines | Received a Rocket Launcher from a helpful Derelict 355 | -10/Mines | Discovered new exit (range 5) 361 | -10/Mines | Entered Exiles 378 | -10/Exiles | Discovered new exit (range 15) 411 | -10/Exiles | Welcomed by 8R-AWN 435 | -10/Exiles | Met EX-HEX 489 | -10/Exiles | Met EX-BIN 503 | -10/Exiles | Aligned with FarCom system 504 | -10/Exiles | Given EX-Vault access code 568 | -10/Exiles | Opened EX-Vault 577 | -10/Exiles | Found PSU Rigger 604 | -10/Exiles | Warned to stay clear of 0b10 Research branches 638 | -10/Exiles | Met EX-DEC 684 | -10/Exiles | Visited The Gauntlet 911 | -10/Exiles | Learned about 8R-AWN's background 956 | -10/Exiles | Left Exiles lab with PSU Rigger 956 | -10/Exiles | Entered Mines 961 | -9/Mines | Met a Derelict shopkeep closing up shop 1003 | -9/Mines | Learned Materials garrison access intel 1429 | -9/Mines | Discovered new exit (range 6) 1433 | -9/Mines | Discovered new exit (range 16) 1926 | -9/Mines | Assisted by bots powering up and referring to "LRC-V3" 2110 | -9/Mines | Entered Materials 2110 | -8/Materials | Evolved 4 slots: Power x1, Utility x2, Weapon x1 2111 | -8/Materials | Loaded intel: 1 garrison access location 2350 | -8/Materials | Lost 4 parts (2p1n1u) 2519 | -8/Materials | Lost 3 parts (1p1u1w) 2572 | -8/Materials | Repaired Imp. Heat Sink 2724 | -8/Materials | Discovered new exit (range 16) 2762 | -8/Materials | Lost 4 parts (1p1n2w) 2856 | -8/Materials | Central database locked down 3097 | -8/Materials | Build established: Scavenger-Assassin 3515 | -8/Materials | Discovered new exit (range 14) 3834 | -8/Materials | Build established: Mutant 3876 | -8/Materials | Core integrity fell below 50% 3967 | -8/Materials | Garrison activated, responded to threat 4123 | -8/Materials | Core integrity fell below 20% 4132 | -8/Materials | Destroyed by G-47 Trooper with Particle Gun Last Messages --------------- Rating: 3 Time: 26 ALERT: Suspicious activity at Repair Station M001. Dispatching Investigation squad. Dropped Nuclear Core. Rigged Nuclear Core with PSU Rigger. Rigged Nuclear Core explodes. Y-45 Defender destroyed. Critical hit (Burn: +37). Lgt. Nuclear Core destroyed. Lgt. Nuclear Core melted. G-47 Trooper destroyed. Hrd. Medium Armor Plating destroyed. Imp. Spread Laser destroyed. Acquired 5 matter. Imp. Aluminum Leg destroyed. Critical hit (Burn: +37). Destroyed Lgt. Nuclear Core. Imp. Aluminum Leg destroyed. Critical hit (Burn: +37). Map ----- +----------------------------------------------------+ | ??????????????????????????????????????? | | ??????????????????????????????????????? | | ??????????????????????????????????????? | | ??????????????????????????????????????? | | ??????????????????????????????????????? | | ??????????????????????????????????????? | | ??????????????????????????????????????? | | ??????????????????????????????????????? | | ??????????????????????????????????????? | | ??????????????????????????????????????? | | ??????????????????????????????????????? | | ??????????????????????????????????????? | | ??????????????????????????????????????? | | ??????????????????????????????????????? | | ??????????????????????????????????????? | | ????????#??????######?????????????????? | | ???"""??# ??#### ####??????????????? | | ???"G"???? ? ???????????????? | | ???"?"????? [ ?w??????????????? | | ?????????####Y#;*% #?????????????????? | | ?????????# #"""######?????????????? | | ?????????# g ;!!= //=#?????????????? | | ?????????# g ;% //=#?????????????? | | ?????????# gg# / //=#?????????????? | | ?????????# # #?????????????? | | ?????????# @#""" #?????????????? | | ?????????# #"R #?????????????? | | ?????????# ;""" !#?????????????? | | ?????????# | [ # "" #?????????????? | | ?????????#=%! ; #?????????????? | | ?????????#= * ### ######?????????????? | | ?????????#%%/ #?###??????????????????? | | ?????????##+####??????????????????????? | | ??????????#*#?????????????????????????? | | ??????????#!#?????????????????????????? | | ??????????#%#?????????????????????????? | | ??????????#!#????????????????########## | | ??????????#[#????????????????# | | ??????????#%#????????????????# | | ??????????#%#?########???????# | | ??????????#=#?# #???????# | | ??????????#=#?# #???????# | | ??????????#!#?# #???????# | | ??????????#[#?# #???????# | | ??????????# #?# #???????# | | ??????????# #?# #???????######+### | | ??????????# #?####+############## # | | ??????????# #?# # | | ??????????# #?# < ! # | | ??????????# #?# = %] | +----------------------------------------------------+ Best States ------------- Heat Dissipation 45 Energy Generation 23 Energy Capacity 300 Matter Stores 450 Matter Capacity 450 Sight Range 16 Robot Scan Range 15 Terrain Scan Density 10 Additional Mass Support 9 Armor Coverage 225 Evasion (%) 55 Targeting Accuracy 8 Recoil Reduction 2 Defensive Hacking 10 Item Schematics ----------------- None Robot Schematics ------------------ None Fabricated ------------ Nothing Alien Tech Used ----------------- None Achievements -------------- Librarian Please Form A Line Power Corrupts Tourist Troublemaker Universal Adapter Challenges ------------ None Game ------ Seed MetaLauncherSpear Manual? 0 Play Time 00:53:20 Cumulative 2.5 hours Start 2024.04.11 @ 15:14:20 End 2024.04.11 @ 16:08:38 Sessions 1 Manual Loads 0 Difficulty Rogue Special Mode None Game No. 4 Rogue 4 Adventurer 0 Explorer 0 Win Type - Total 0 Types 0/0/0/0/0/0/0/0/0 Lore% 8 Gallery% 8 Achievement% 6 Wizard Run 0 Options --------- Layout 1 ASCII 0 Keyboard 0 Movement Mouse Keybinds 0 Fullscreen 1 Font 32/SmallcapsGlow Map View 50x35 Zoom Use 0% Tactical HUD 0 Map Filters NONE Filters NONE Steam 1 RUN: b56dfac1-64f3-41ab-bf9b-07da61d68206